bitfinex/quotes_ETHUSD_20240717
["timestamp","ask_amount","ask_price","bid_price","bid_amount"]
[1721180838428,2.85461,3503.1,3502.2,0.55]
[1721180838735,2.3275,3503.2,3502.2,0.59278043]
[1721180838918,1.19829998,3504.1,3502.3,2.2273]
[1721180839134,2.85381,3504.1,3503.0,1.7]
[1721180839313,5.23331,3504.2,3503.1,0.55]
[1721180839557,5.23331,3504.2,3503.1,0.59263871]
[1721180839726,5.23331,3504.2,3503.4,1.7]
[1721180840100,5.23331,3504.2,3503.5,0.04260651]
[1721180840306,2.85356,3504.4,3503.5,0.04260651]
[1721180840620,3.671746,3504.4,3503.5,0.04260651]
[1721180840839,2.85356,3504.4,3503.5,0.59260651]
[1721180841033,5.442,3505.2,3503.8,1.7]
[1721180841034,2.85305,3505.1,3503.8,1.7]
[1721180841227,2.3268,3505.2,3504.2,1.7]
[1721180841409,5.17971,3505.2,3504.3,0.55]
[1721180841744,5.17971,3505.2,3504.3,0.59232811]
[1721180841745,0.803246,3505.1,3504.3,0.59232811]
[1721180841963,0.803246,3505.1,3504.3,0.04232811]
[1721180842449,2.85306,3505.0,3504.4,0.04232006]
[1721180842641,2.85306,3505.0,3504.1,0.55]
[1721180842815,2.85306,3505.0,3503.9,3.0]
[1721180842816,2.85306,3505.0,3504.5,0.04231202]
[1721180843018,3.7366616,3505.0,3503.9,3.0]
[1721180843189,3.7366616,3505.0,3503.6,7.28]
[1721180843190,0.8836016,3505.0,3504.6,0.04230397]
[1721180843424,0.8836016,3505.0,3503.6,7.28]
[1721180843425,2.85347,3504.5,3503.6,7.28]
[1721180843651,2.85357,3504.4,3503.6,7.28]
[1721180844026,2.85346,3504.6,3503.6,7.28]
[1721180844335,2.85346,3504.6,3503.7,0.728]
[1721180844534,2.85348,3504.5,3503.7,0.728]
[1721180844744,2.85357,3504.4,3503.7,0.728]
[1721180845597,2.85343,3504.6,3503.7,0.728]
[1721180845803,2.85343,3504.6,3503.8,0.04229598]
[1721180846019,2.85331,3504.7,3503.8,0.04229598]
[1721180846365,2.85356,3504.4,3503.8,0.04229598]
[1721180846638,2.85339,3504.6,3503.6,7.28]
[1721180846639,2.85364,3504.3,3503.6,7.28]
[1721180846812,2.85364,3504.3,3503.9,0.04230401]
[1721180847040,0.37369116,3504.7,3503.6,7.28]
[1721180847041,5.70766,3504.1,3503.6,7.28]
[1721180847268,2.8538,3504.1,3504.0,0.04229596]
[1721180847504,2.8538,3504.1,3503.6,7.28]
[1721180847635,2.85403,3503.9,3503.6,7.28]
[1721180847810,2.85404,3503.8,3503.7,0.04233297]
[1721180848236,2.8538,3504.1,3503.7,0.04233297]
[1721180848630,2.4249,3504.6,3503.7,0.38244008]
[1721180848833,2.8537,3504.3,3503.7,0.38244008]
[1721180849038,2.85347,3504.5,3503.7,0.04233297]
[1721180849039,2.85372,3504.2,3503.7,0.04233297]
[1721180849556,2.85331,3504.7,3503.7,1.74233297]
[1721180849760,2.85304,3505.1,3503.8,5.89509157]
[1721180849922,5.86046,3505.8,3504.2,1.7]
[1721180849923,2.85286,3505.3,3504.2,1.7]
[1721180850243,2.85275,3505.4,3504.3,1.04737719]
[1721180851636,2.85282,3505.3,3504.3,1.04737719]
[1721180852722,2.85298,3505.2,3504.3,1.04737719]
[1721180853421,2.85298,3505.1,3504.3,1.04737719]
[1721180853998,2.85307,3505.0,3504.3,1.04737719]
[1721180854204,2.85321,3504.9,3504.3,0.04199019]
[1721180854502,2.85323,3504.8,3504.0,7.28]
[1721180854703,2.85323,3504.8,3504.4,0.04184868]
[1721180855012,2.85323,3504.8,3504.5,0.04184224]
[1721180855218,2.85323,3504.8,3504.0,7.28]
[1721180855420,2.85323,3504.8,3504.6,0.04186796]
[1721180855638,2.85323,3504.8,3504.1,1.0164]
[1721180855940,2.85321,3504.9,3504.1,1.0164]
[1721180855941,2.85332,3504.7,3504.1,1.0164]
[1721180856136,3.008,3505.4,3504.0,7.28]
[1721180856317,2.85348,3504.5,3504.0,7.28]
[1721180856525,2.85308,3505.0,3503.4,1.7]
[1721180856526,2.85356,3504.4,3503.6,7.28]
[1721180856725,2.85356,3504.4,3503.7,0.55]
[1721180856928,2.85312,3505.0,3503.7,0.55]
[1721180857132,2.85316,3504.9,3503.7,0.55]
[1721180857441,2.85316,3504.9,3503.7,3.4041]
[1721180857611,2.85298,3505.1,3503.8,1.7]
[1721180857812,2.85298,3505.1,3504.0,2.85387]
[1721180858031,2.85298,3505.1,3504.1,0.55]
[1721180858923,2.85307,3505.0,3504.1,0.55]
[1721180859124,2.85307,3505.0,3504.0,0.55]
[1721180861247,2.85307,3505.0,3504.1,0.04192106]
[1721180861414,2.85307,3505.0,3504.2,0.48026611]
[1721180861746,2.85307,3505.0,3504.3,0.55]
[1721180862044,2.85331,3504.7,3504.4,0.04189692]
[1721180862449,2.85331,3504.7,3503.9,1.90679]
[1721180862631,2.85331,3504.7,3504.5,0.04188887]
[1721180862834,2.85331,3504.7,3503.9,1.90679]
[1721180863032,2.8534,3504.6,3503.9,1.90679]
[1721180863635,2.8534,3504.6,3503.9,1.35679]
[1721180864945,2.85348,3504.5,3503.9,1.35679]
[1721180865324,2.85355,3504.4,3503.3,5.884]
[1721180865519,2.85373,3504.2,3503.6,7.28]
[1721180865820,2.85373,3504.2,3503.7,3.0]
[1721180866553,2.85373,3504.2,3503.4,3.0]
[1721180866751,2.85373,3504.2,3503.5,0.55]
[1721180867323,2.85364,3504.3,3503.5,0.55]
[1721180867518,2.85364,3504.3,3503.6,1.083]
[1721180867723,2.85373,3504.2,3503.6,1.083]
[1721180868643,2.8538,3504.1,3503.6,1.083]
[1721180870646,2.8538,3504.1,3503.3,7.28]
[1721180870647,2.85389,3504.0,3503.3,7.28]
[1721180871340,2.3302,3504.5,3503.3,7.28]
[1721180871341,2.85422,3503.6,3503.3,7.28]
[1721180873420,2.85439,3503.4,3502.8,0.297781]
[1721180873536,2.85439,3503.4,3502.9,0.9277781]
[1721180875471,5.70848,3503.6,3502.9,0.9277781]
[1721180875629,2.85438,3503.4,3502.9,0.9277781]
[1721180875828,2.85438,3503.4,3503.0,0.04220744]
[1721180877771,2.85438,3503.4,3502.7,3.0]
[1721180877974,2.85438,3503.4,3503.1,0.042201]
[1721180878140,2.85438,3503.4,3502.8,1.42073]
[1721180878341,2.85438,3503.4,3503.2,0.04219295]
[1721180878571,2.85438,3503.4,3502.7,3.0]
[1721180879084,2.85438,3503.4,3502.8,0.04222515]
[1721180880585,2.85438,3503.4,3502.8,1.07444767]
[1721180880953,2.85448,3503.3,3502.8,0.04222515]
[1721180881186,5.35317,3503.7,3502.8,0.04222515]
[1721180881187,2.85469,3503.1,3502.8,0.04222515]
[1721180881349,7.78717,3503.7,3502.6,7.28]
[1721180881350,2.85437,3503.4,3502.6,7.28]
[1721180881549,2.85437,3503.4,3502.9,0.0422171]
[1721180881743,2.85437,3503.4,3503.0,0.04220905]
[1721180881987,2.85437,3503.4,3502.6,7.28]
[1721180882489,2.85445,3503.3,3502.7,0.04223321]
[1721180883891,2.499,3503.7,3502.7,0.04223321]
[1721180883892,2.85468,3503.1,3502.7,0.04223321]
[1721180884092,2.85472,3503.0,3502.7,0.04223321]
[1721180887002,2.19546443,3503.0,3502.7,0.04223321]
[1721180887204,2.85479,3502.9,3502.7,0.04223321]
[1721180887702,2.85485,3502.8,3502.7,0.04223321]
[1721180888227,2.2614,3503.5,3502.1,3.0]
[1721180888228,2.85474,3503.0,3502.1,3.0]
[1721180888428,2.85477,3502.9,3502.1,3.55]
[1721180888920,2.85477,3502.9,3502.2,0.04233945]
[1721180892796,2.85475,3503.0,3502.2,0.04233945]
[1721180893131,2.85475,3503.0,3502.3,1.08723394]
[1721180893531,2.85475,3503.0,3502.4,0.04232334]
[1721180893938,2.85477,3502.9,3502.4,0.04232334]
[1721180894602,2.85477,3502.9,3502.1,3.55]
[1721180894804,2.85477,3502.9,3502.5,0.04231528]
[1721180895007,2.85461,3503.1,3502.2,1.538559]
[1721180895500,2.85461,3503.1,3502.3,0.04233139]
[1721180896277,2.85477,3502.9,3502.3,0.04233139]
[1721180898542,2.85493,3502.8,3502.3,0.04233139]
[1721180898765,2.85491,3502.8,3502.3,0.04233139]
[1721180898984,2.85491,3502.8,3502.1,3.0]
[1721180899127,2.85491,3502.8,3502.4,0.04245204]
[1721180899326,2.85491,3502.8,3502.1,4.198]
[1721180899553,2.85491,3502.8,3502.5,0.04244399]
[1721180899773,2.85491,3502.8,3502.1,4.198]
[1721180899956,2.85491,3502.8,3502.6,0.04243593]
[1721180900269,2.85491,3502.8,3502.7,0.04242788]
[1721180900431,2.85491,3502.8,3502.1,4.198]
[1721180900632,2.85491,3502.8,3502.7,0.04242788]
[1721180900865,2.85491,3502.8,3502.2,1.3178]
[1721180901062,2.85491,3502.8,3502.7,0.04242788]
[1721180901267,2.85491,3502.8,3502.2,1.3178]
[1721180901426,2.85491,3502.8,3502.7,0.04242788]
[1721180901631,2.85478,3502.9,3502.2,1.3178]
[1721180901936,2.85478,3502.9,3502.7,0.04242788]
[1721180902242,2.85454,3503.2,3502.8,0.04241983]
[1721180902441,2.85454,3503.2,3502.4,0.55]
[1721180902641,2.85454,3503.2,3502.9,0.04241177]
[1721180902865,2.85454,3503.2,3502.4,0.55]
[1721180903062,2.8547,3503.0,3502.4,1.020978]
[1721180903233,2.85478,3502.9,3502.4,0.470978]
[1721180904348,2.3187,3502.8,3502.4,0.470978]
[1721180904765,5.17357,3502.8,3502.4,0.470978]
[1721180905372,5.17357,3502.8,3501.4,7.28]
[1721180905373,2.434,3502.7,3501.4,7.28]
[1721180905584,2.85551,3502.0,3501.4,7.28]
[1721180905888,2.85526,3502.4,3501.5,0.03695807]
[1721180906050,2.8553,3502.3,3501.5,0.03695807]
[1721180906472,2.85535,3502.2,3501.5,0.03695807]
[1721180907177,2.85535,3502.2,3501.5,0.58695807]
[1721180907377,6.008,3503.2,3501.5,0.58695807]
[1721180907378,2.85557,3502.0,3501.5,0.03695807]
[1721180907871,2.85551,3502.0,3501.5,0.03695807]
[1721180908461,5.7111,3502.0,3501.5,0.03695807]
[1721180908891,2.85544,3502.1,3501.5,0.03695807]
[1721180909270,2.2662,3502.4,3501.5,0.03695807]
[1721180909563,2.85545,3502.1,3501.6,0.73169581]
[1721180909774,2.85545,3502.1,3501.5,0.58695807]
[1721180909775,2.85545,3502.1,3501.5,0.03695807]
[1721180909978,2.85545,3502.1,3501.7,0.03706719]
[1721180910173,2.85545,3502.1,3501.6,0.03707525]
[1721180910377,2.85545,3502.1,3501.8,0.03705914]
[1721180910575,5.71066,3502.3,3501.7,0.03706719]
[1721180910769,5.71066,3502.3,3501.5,0.55]
[1721180910959,5.71066,3502.3,3501.8,0.03705914]
[1721180911161,5.71066,3502.3,3501.5,1.3777557]
[1721180911355,5.71066,3502.3,3501.9,0.03705108]
[1721180911560,5.71066,3502.3,3501.5,1.3777557]
[1721180911784,2.85533,3502.3,3502.0,0.03704302]
[1721180911988,2.85533,3502.3,3501.5,1.3777557]
[1721180912192,2.85533,3502.3,3502.1,0.03703496]
[1721180912390,2.85533,3502.3,3501.6,1.03577557]
[1721180912884,2.85533,3502.3,3501.7,0.03706719]
[1721180913084,5.12138,3502.4,3501.7,0.03706719]
[1721180913263,2.8554,3502.2,3501.5,0.55]
[1721180913598,2.8554,3502.2,3501.8,0.03705914]
[1721180913907,2.8554,3502.2,3501.9,0.03705108]
[1721180914085,2.8554,3502.2,3501.5,1.5477557]
[1721180914275,2.8554,3502.2,3502.0,0.03704302]
[1721180914464,2.8554,3502.2,3501.5,1.5477557]
[1721180914666,2.8554,3502.2,3502.1,0.03703496]
[1721180914864,2.8554,3502.2,3501.5,0.55]
[1721180915078,2.8554,3502.2,3502.1,0.03703496]
[1721180915298,2.8554,3502.2,3501.5,0.55]
[1721180915499,2.8554,3502.2,3502.1,0.03703496]
[1721180915799,2.8554,3502.2,3501.5,0.55]
[1721180916090,2.8554,3502.2,3501.5,1.5477557]
[1721180916261,2.85543,3502.1,3501.6,0.03707525]
[1721180916864,2.2662,3502.4,3501.6,0.03707525]
[1721180917068,2.85551,3502.0,3501.6,0.03707525]
[1721180917272,2.85551,3502.0,3501.4,7.28]
[1721180917469,2.85572,3501.8,3501.7,0.03720208]
[1721180917772,2.85577,3501.7,3501.2,0.44755704]
[1721180917968,2.85577,3501.7,3501.2,2.45831274]
[1721180918374,5.16847,3501.7,3501.2,0.44755704]
[1721180918777,2.85584,3501.6,3501.2,0.44755704]
[1721180919384,2.85572,3501.8,3501.2,0.44755704]
[1721180920377,2.3127,3502.2,3501.3,0.55]
[1721180920378,2.85559,3501.9,3501.3,0.55]
[1721180921097,2.85559,3501.9,3501.4,0.03725356]
[1721180921303,2.8558,3501.7,3501.4,0.03725356]
[1721180921502,2.8558,3501.7,3501.2,0.44755704]
[1721180921705,2.8558,3501.7,3501.5,0.0372455]
[1721180922004,2.4198,3501.5,3501.2,0.44755704]
[1721180922177,5.71158,3501.7,3501.2,0.44755704]
[1721180922377,2.85583,3501.6,3501.2,0.44755704]
[1721180923170,2.85583,3501.6,3501.2,1.22031274]
[1721180925503,2.85583,3501.6,3501.2,0.44755704]
[1721180925705,2.85605,3501.4,3501.2,0.44755704]
[1721180926023,2.85608,3501.3,3501.2,0.44755704]
[1721180926170,5.18138,3501.3,3501.2,0.44755704]
[1721180927403,2.85586,3501.6,3501.2,0.44755704]
[1721180927811,2.85586,3501.6,3501.3,0.03743027]
[1721180928113,2.856,3501.4,3501.2,0.44755704]
[1721180928480,5.71176,3501.6,3501.2,0.44755704]
[1721180928679,5.1811,3501.7,3501.2,0.44755704]
[1721180928877,2.8558,3501.7,3501.3,0.81021489]
[1721180929913,2.85554,3502.0,3501.3,0.81021489]
[1721180930205,3.008,3502.8,3501.3,0.81021489]
[1721180930206,2.85527,3502.3,3501.4,0.55]
[1721180930404,2.85527,3502.3,3501.5,0.63639219]
[1721180930582,2.85527,3502.3,3501.6,0.55]
[1721180930990,2.85527,3502.3,3501.7,0.03739]
[1721180932213,2.85535,3502.2,3501.7,0.03739]
[1721180932404,2.85535,3502.2,3501.2,0.44755704]
[1721180932603,2.85535,3502.2,3501.8,0.03733053]
[1721180932604,2.85552,3502.0,3501.8,0.03733053]
[1721180932800,2.3253,3501.9,3501.3,0.55]
[1721180932999,5.1809,3501.9,3501.2,0.44755704]
[1721180933307,2.85568,3501.8,3501.3,0.03737404]
[1721180933500,2.85568,3501.8,3501.2,0.44755704]
[1721180933703,2.85568,3501.8,3501.4,0.03736598]
[1721180933897,2.85577,3501.7,3501.2,0.44755704]
[1721180934121,2.85583,3501.6,3501.5,0.03735792]
[1721180934411,2.85583,3501.6,3501.2,0.44755704]
[1721180934412,2.85594,3501.5,3501.2,0.44755704]
[1721180935689,2.85594,3501.5,3501.3,0.03737404]
[1721180935887,2.85594,3501.5,3501.2,0.44755704]
[1721180936087,2.85594,3501.5,3501.4,0.03736598]
[1721180936287,2.85594,3501.5,3501.2,0.44755704]
[1721180936510,2.85594,3501.5,3501.4,0.03736598]
[1721180936716,2.85594,3501.5,3501.2,0.44755704]
[1721180937044,2.85594,3501.5,3501.4,0.03736598]
[1721180937357,2.856,3501.4,3501.2,0.44755704]
[1721180937492,0.571177,3501.5,3501.2,0.44755704]
[1721180937493,2.85608,3501.3,3501.2,0.44755704]
[1721180943330,5.29331,3501.4,3501.2,0.44755704]
[1721180943535,2.85608,3501.3,3501.2,0.44755704]
[1721180945820,5.71216,3501.3,3501.2,0.44755704]
[1721180946116,8.13096,3501.3,3501.2,0.44755704]
[1721180946618,8.944056,3501.3,3501.2,0.44755704]
[1721180946818,2.85646,3500.9,3500.7,7.28]
[1721180947128,2.85646,3500.9,3500.5,0.44780761]
[1721180947936,2.85649,3500.8,3500.5,0.44780761]
[1721180948439,2.85658,3500.7,3500.5,0.44780761]
[1721180949305,2.85665,3500.6,3500.5,0.44780761]
[1721180950818,2.85665,3500.6,3500.5,0.48425118]
[1721180953715,5.7133,3500.6,3500.5,0.03644357]
[1721180953916,5.7133,3500.6,3499.8,12.67820906]
[1721180953917,2.85686,3500.4,3499.8,12.67820906]
[1721180954122,2.28533619,3500.4,3499.8,0.74604137]
[1721180954546,2.85691,3500.3,3499.8,0.74604137]
[1721180956019,2.85701,3500.2,3499.8,0.74604137]
[1721180958363,2.4703,3500.1,3499.8,0.74604137]
[1721180958853,5.32741,3500.1,3499.8,0.44783231]
[1721180960248,2.85682,3500.4,3499.8,0.44783231]
[1721180960565,2.4206,3500.5,3499.8,0.44783231]
[1721180960566,5.27734,3500.5,3499.8,0.44783231]
[1721180961838,2.85681,3500.4,3499.8,0.44783231]
[1721180962430,2.85696,3500.3,3499.8,0.44783231]
[1721180963626,2.85698,3500.2,3499.8,0.44783231]
[1721180963832,2.36977856,3500.2,3499.8,0.44783231]
[1721180964265,0.62425886,3500.1,3499.8,0.44783231]
[1721180964629,3.48132886,3500.1,3499.8,0.44783231]
[1721180964834,2.2676,3500.0,3499.3,7.28]
[1721180965062,2.2676,3500.0,3499.4,0.55]
[1721180965845,2.2676,3500.0,3499.5,0.03670266]
[1721180966363,2.2676,3500.0,3499.5,0.86815789]
[1721180966953,5.12475,3500.0,3499.5,0.03670266]
[1721180967135,5.12475,3500.0,3499.3,7.7278496]
[1721180967335,5.12475,3500.0,3499.6,0.03669459]
[1721180967562,5.12475,3500.0,3499.3,7.7278496]
[1721180967767,5.12475,3500.0,3499.7,0.03668652]
[1721180967936,5.12475,3500.0,3499.3,7.7278496]
[1721180968262,5.12475,3500.0,3499.8,0.03667846]
[1721180968580,5.12475,3500.0,3499.9,0.03667039]
[1721180969085,5.12475,3500.0,3499.3,7.7278496]
[1721180969673,5.12475,3500.0,3499.4,0.03671073]
[1721180970967,2.85724,3499.9,3499.4,0.03671073]
[1721180971190,5.16161,3500.3,3499.5,0.77645603]
[1721180971369,2.85698,3500.2,3499.5,0.77645603]
[1721180971565,2.85698,3500.2,3499.6,0.03673799]
[1721180972569,2.3047,3500.3,3499.6,0.58673799]
[1721180973770,2.85671,3500.6,3499.6,0.58673799]
[1721180973977,2.3852,3500.7,3499.8,1.7]
[1721180974274,2.85588,3501.6,3499.8,1.7]
[1721180974275,2.3852,3501.0,3500.0,2.85713]
[1721180974650,2.3852,3501.0,3500.1,0.58672177]
[1721180974978,2.3852,3501.0,3500.2,0.62211518]
[1721180975141,2.3852,3501.0,3500.3,0.55]
[1721180975345,2.3852,3501.0,3500.3,0.58670564]
[1721180976674,2.3852,3501.0,3500.3,0.03670564]
[1721180977037,5.24159,3501.0,3500.1,0.55]
[1721180977241,5.24159,3501.0,3500.2,1.04244371]
[1721180977665,5.24159,3501.0,3500.2,2.74244371]
[1721180978177,2.3852,3501.0,3500.2,2.74244371]
[1721180978472,2.3852,3501.0,3500.3,0.55]
[1721180978864,2.3852,3501.0,3500.4,0.03669758]
[1721180979063,2.3852,3501.0,3500.4,0.65163934]
[1721180983052,4.34985577,3501.9,3500.4,0.65163934]
[1721180983053,2.3796,3501.7,3500.7,5.08386]
[1721180983257,2.3796,3502.1,3500.9,2.85636]
[1721180983456,2.3796,3502.1,3501.5,1.7]
[1721180983714,2.4825,3502.5,3501.5,4.55591]
[1721180983893,2.4825,3502.5,3501.6,0.58641437]
[1721180984121,2.4825,3503.0,3501.9,1.7]
[1721180984257,5.33724,3503.0,3502.0,1.015]
[1721180984582,1.015,3502.9,3502.1,0.03626201]
[1721180984882,2.85491,3502.8,3501.9,0.55]
[1721180985056,2.85491,3502.8,3501.8,1.015]
[1721180985257,2.4825,3502.4,3501.9,0.03616602]
[1721180985664,2.4825,3502.4,3501.7,7.28]
[1721180986256,2.4825,3502.4,3501.8,0.03617408]
[1721180986787,2.85559,3501.9,3501.8,0.03617408]
[1721180986961,2.85575,3501.8,3501.0,7.28]
[1721180987385,2.4825,3501.9,3501.1,0.03489026]
[1721180987554,5.33811,3501.9,3501.1,0.03489026]
[1721180987759,2.85567,3501.8,3501.1,0.03489026]
[1721180987961,2.85578,3501.7,3501.1,0.03489026]
[1721180988560,2.85584,3501.6,3501.1,0.03489026]
[1721180988757,5.71232,3501.2,3501.1,0.03489026]
[1721180988961,5.71232,3501.2,3500.4,7.28]
[1721180988962,2.85664,3500.7,3500.4,7.28]
[1721180989187,2.85644,3500.9,3499.8,22.36]
[1721180989387,2.85625,3501.1,3499.9,4.5572]
[1721180989388,2.85629,3501.1,3499.9,4.5572]
[1721180989670,2.8561,3501.3,3499.9,4.85511807]
[1721180989671,2.85634,3501.0,3499.9,4.85511807]
[1721180989988,2.4707,3501.5,3500.0,2.72151181]
[1721180990185,2.85666,3500.6,3499.9,1.99791807]
[1721180990391,2.85666,3500.6,3499.9,1.7]
[1721180991369,2.85666,3500.6,3499.8,7.28]
[1721180992197,2.85666,3500.6,3499.9,0.55]
[1721180994293,2.85649,3500.8,3499.9,0.55]
[1721180994294,2.85673,3500.5,3499.9,0.55]
[1721180994779,2.85681,3500.4,3499.8,7.28]
[1721180995816,2.85681,3500.4,3499.9,0.03284265]
[1721180997892,2.4707,3500.7,3499.9,0.03284265]
[1721180998122,2.85699,3500.2,3499.9,0.03284265]
[1721180999850,0.24707,3500.6,3499.9,0.03284265]
[1721180999991,2.85714,3500.0,3499.9,0.03284265]
[1721181000193,2.85714,3500.0,3499.3,20.1078496]
[1721181000394,2.85714,3500.0,3499.9,0.0328523]
[1721181000594,2.85714,3500.0,3499.3,20.1078496]
[1721181000821,2.85714,3500.0,3499.9,0.03306763]
[1721181001042,2.85727,3499.9,3499.3,20.1078496]
[1721181002237,2.85708,3500.1,3499.3,20.1078496]
[1721181002923,2.85723,3499.9,3499.3,7.7278496]
[1721181004227,5.13883,3499.9,3499.3,7.7278496]
[1721181005823,5.13883,3499.9,3499.3,8.97063456]
[1721181007019,5.13883,3499.9,3499.3,7.7278496]
[1721181007218,2.85739,3499.7,3499.3,7.7278496]
[1721181007443,2.85753,3499.6,3499.3,0.4478496]
[1721181008440,5.85627,3501.1,3499.3,0.4478496]
[1721181008441,5.23013,3500.5,3499.3,0.4478496]
[1721181008733,5.22972,3501.0,3499.7,1.7]
[1721181008934,2.85657,3500.7,3499.8,0.55]
[1721181009108,5.22972,3501.0,3499.8,0.55]
[1721181009109,2.85644,3500.9,3499.8,0.55]
[1721181009523,2.85652,3500.8,3499.8,0.55]
[1721181009709,2.85652,3500.8,3499.9,0.810738]
[1721181009910,2.85657,3500.7,3500.0,0.55]
[1721181010123,2.85668,3500.6,3500.0,0.55]
[1721181010335,2.85668,3500.6,3499.7,7.28]
[1721181010336,5.35567,3500.2,3499.7,7.28]
[1721181010536,2.85682,3500.4,3499.7,7.28]
[1721181010829,2.85682,3500.4,3499.8,0.03308534]
[1721181011707,2.85698,3500.2,3499.8,0.03308534]
[1721181011935,2.85717,3500.0,3499.8,0.03308534]
[1721181012137,2.85722,3499.9,3499.8,0.03308534]
[1721181012336,2.85722,3499.9,3499.3,0.4478496]
[1721181012337,2.85763,3499.4,3499.3,0.4478496]
[1721181012631,2.4002,3499.8,3498.3,0.29822265]
[1721181012632,2.85802,3499.0,3498.3,0.29822265]
[1721181012837,2.85787,3499.1,3497.7,4.55899]
[1721181013004,2.85751,3499.6,3498.5,1.7]
[1721181013005,2.85749,3499.6,3498.5,1.7]
[1721181013202,2.85755,3499.5,3498.5,1.7]
[1721181013402,2.85755,3499.5,3498.6,0.17]
[1721181014320,2.85763,3499.4,3498.7,0.55]
[1721181014518,2.8578,3499.2,3498.5,1.7]
[1721181014938,2.8579,3499.1,3498.2,3.0]
[1721181015107,2.8579,3499.1,3498.3,0.55]
[1721181015310,2.8579,3499.1,3498.2,3.55]
[1721181015613,2.85765,3499.4,3498.3,1.1842579]
[1721181015802,2.85765,3499.4,3498.4,0.55]
[1721181016005,8.10272,3498.2,3498.1,0.44801903]
[1721181016224,8.10272,3498.2,3497.3,0.29824551]
[1721181016225,2.3855,3498.2,3497.3,0.29824551]
[1721181016424,2.3855,3498.2,3496.8,1.7]
[1721181016625,5.24411,3498.2,3496.8,4.55973]
[1721181016810,2.85869,3498.1,3496.8,1.7]
[1721181017011,5.7177,3497.9,3496.3,1.7]
[1721181017212,6.52802,3497.9,3496.1,7.57818134]
[1721181017411,6.52802,3497.9,3496.4,1.7]
[1721181018510,6.52802,3497.9,3496.2,2.8602]
[1721181019025,6.52802,3497.9,3497.8,9.31143753]
[1721181019343,6.52802,3497.9,3497.8,9.34100233]
[1721181019914,3.66917,3497.9,3497.8,9.34100233]
[1721181020222,3.66917,3497.9,3497.8,9.31143753]
[1721181020423,3.66917,3497.9,3497.8,9.34104513]
[1721181020424,6.52802,3497.9,3497.8,9.34104513]
[1721181020727,3.66917,3497.9,3497.8,9.34104513]
[1721181020905,2.85885,3497.9,3497.8,9.34104513]
[1721181021111,5.7177,3497.9,3497.8,9.34104513]
[1721181023119,8.57655,3497.9,3497.8,9.34104513]
[1721181023427,5.7177,3497.9,3497.8,9.34104513]
[1721181023609,8.57655,3497.9,3497.8,9.34104513]
[1721181023845,9.973555,3497.9,3497.8,9.31143753]
[1721181024251,9.973555,3497.9,3497.8,9.34107412]
[1721181024466,12.461555,3497.9,3497.8,9.34107412]
[1721181024707,18.328405,3497.9,3497.8,9.34107412]
[1721181024849,21.328405,3497.9,3497.8,9.34107412]
[1721181025907,24.737255,3497.9,3497.8,2.19372412]
[1721181026057,24.737255,3497.9,3497.8,4.12e-06]
[1721181026058,21.878405,3497.9,3497.8,4.12e-06]
[1721181026402,2.86023,3496.3,3495.6,7.3751465]
[1721181026567,2.86023,3496.3,3495.7,0.96024465]
[1721181026772,2.86023,3496.3,3495.6,0.0951465]
[1721181027896,2.86023,3496.3,3495.6,0.54356044]
[1721181028271,2.86026,3496.2,3495.6,0.54356044]
[1721181028587,2.86026,3496.2,3495.6,0.0951465]
[1721181030892,2.86033,3496.1,3495.6,0.0951465]
[1721181031312,2.86041,3496.0,3495.6,0.0951465]
[1721181031454,2.86034,3496.1,3495.6,0.0951465]
[1721181031660,2.86023,3496.3,3495.6,0.0951465]
[1721181031897,2.86042,3496.0,3495.6,0.0951465]
[1721181032675,2.86051,3495.9,3495.6,0.0951465]
[1721181033531,0.523262,3496.8,3495.6,0.0951465]
[1721181033532,2.2671,3496.7,3495.6,0.0951465]
[1721181033702,2.86065,3495.7,3495.6,0.0951465]
[1721181036114,5.7213,3495.7,3495.6,0.0951465]
[1721181041011,5.7213,3495.7,3495.6,0.16136728]
[1721181041600,5.7213,3495.7,3495.6,0.0951465]
[1721181046986,2.86065,3495.7,3495.6,0.0951465]
[1721181047571,5.12759,3495.9,3495.6,0.0951465]
[1721181047810,2.86049,3495.9,3495.6,0.0951465]
[1721181048114,9.6914362,3496.6,3495.6,0.0951465]
[1721181048115,0.8234362,3496.6,3495.6,0.0951465]
[1721181048329,0.523262,3496.8,3495.6,0.0951465]
[1721181048619,5.30409,3496.9,3495.7,0.61671128]
[1721181048770,2.85953,3497.1,3495.8,2.86056]
[1721181049111,2.8594,3497.3,3495.9,38.41048]
[1721181049269,2.85934,3497.3,3496.1,2.86028]
[1721181049472,2.85934,3497.3,3496.2,2.91736562]
[1721181049817,2.85934,3497.3,3496.3,0.55]
[1721181049985,2.85923,3497.5,3496.3,0.55]
[1721181050317,2.85918,3497.5,3496.3,3.47667586]
[1721181050470,2.85927,3497.4,3496.3,0.61652586]
[1721181050819,2.85927,3497.4,3496.4,0.92544915]
[1721181051124,2.85915,3497.6,3496.5,0.55]
[1721181051268,2.85915,3497.6,3496.5,0.61642701]
[1721181052233,2.85903,3497.7,3496.5,0.61642701]
[1721181052745,2.85912,3497.6,3496.5,0.61642701]
[1721181052871,2.85912,3497.6,3496.6,0.61019562]
[1721181053073,2.85899,3497.8,3496.7,0.55]
[1721181053371,2.85854,3498.3,3496.8,1.7]
[1721181053578,2.3581,3498.4,3496.9,0.55]
[1721181053878,0.23581,3498.4,3497.2,1.7]
[1721181054089,3.09426,3498.4,3497.3,0.55]
[1721181054303,3.09426,3498.4,3497.4,0.05717806]
[1721181054482,3.09426,3498.4,3497.5,0.55]
[1721181054692,3.09426,3498.4,3497.5,0.61598753]
[1721181054978,2.85814,3498.8,3497.5,1.86724509]